[Event "St Kilda East and Caulfield Chess Club T3 2025 Under 1600 Mondays"]
[Site "St Kilda East, Australia"]
[Date "2025.08.25"]
[Round "5.3"]
[White "Hennessy, Rob"]
[Black "Nash, Paul"]
[Result "0-1"]
[TimeControl "60 minutes per player per game plus 10 secionds per move from move one"]
[WhiteElo "979"]
[BlackElo "1009"]

1. e4 {[%clk 00:58:25]} {[%emt 00:01:44]} e5 {[%clk 01:00:04]} {[%emt
00:00:05]} 2. Nf3 {[%clk 00:58:30]} {[%emt 00:00:06]} Nc6 {[%clk 01:00:09]}
{[%emt 00:00:05]} 3. Bb5 {[%clk 00:58:35]} {[%emt 00:00:05]} a6 {[%clk
01:00:07]} {[%emt 00:00:12]} 4. Ba4 {[%clk 00:58:33]} {[%emt 00:00:12]} Nf6
{[%clk 01:00:02]} {[%emt 00:00:15]} 5. O-O {[%clk 00:58:27]} {[%emt 00:00:16]}
b5 {[%clk 01:00:02]} {[%emt 00:00:10]} 6. Bb3 {[%clk 00:58:31]} {[%emt
00:00:07]} Be7 {[%clk 00:59:30]} {[%emt 00:00:41]} 7. Re1 {[%clk 00:58:33]}
{[%emt 00:00:08]} O-O {[%clk 00:59:26]} {[%emt 00:00:15]} 8. c3 {[%clk
00:58:26]} {[%emt 00:00:17]} d5 {[%clk 00:59:16]} {[%emt 00:00:20]} 9. exd5
{[%clk 00:57:44]} {[%emt 00:00:52]} Nxd5 {[%clk 00:59:12]} {[%emt 00:00:13]} 10.
Nxe5 {[%clk 00:56:57]} {[%emt 00:00:58]} Nxe5 {[%clk 00:59:12]} {[%emt
00:00:10]} 11. Rxe5 {[%clk 00:56:39]} {[%emt 00:00:27]} c6 {[%clk 00:59:09]}
{[%emt 00:00:13]} 12. d4 {[%clk 00:55:36]} {[%emt 00:01:13]} Bd6 {[%clk
00:59:09]} {[%emt 00:00:11]} 13. Re1 {[%clk 00:54:46]} {[%emt 00:01:00]} Qh4
{[%clk 00:59:05]} {[%emt 00:00:13]} 14. g3 {[%clk 00:53:25]} {[%emt 00:01:31]}
Qh3 {[%clk 00:59:07]} {[%emt 00:00:08]} 15. Bxd5 {[%clk 00:51:08]} {[%emt
00:02:26]} cxd5 {[%clk 00:59:06]} {[%emt 00:00:11]} 16. Qf3 {[%clk 00:50:42]}
{[%emt 00:00:36]} Be6 {[%clk 00:56:35]} {[%emt 00:02:41]} 17. Bf4 {[%clk
00:47:49]} {[%emt 00:03:04]} Bg4 {[%clk 00:53:48]} {[%emt 00:02:56]} 18. Qg2
{[%clk 00:47:13]} {[%emt 00:00:47]} Bxf4 {[%clk 00:51:58]} {[%emt 00:02:00]} 19.
Qxh3 {[%clk 00:46:14]} {[%emt 00:01:09]} Bxh3 {[%clk 00:51:58]} {[%emt
00:00:10]} 20. gxf4 {[%clk 00:46:16]} {[%emt 00:00:08]} f6 {[%clk 00:47:43]}
{[%emt 00:04:25]} 21. Re3 {[%clk 00:45:30]} {[%emt 00:00:56]} Bf5 {[%clk
00:46:13]} {[%emt 00:01:39]} 22. Nd2 {[%clk 00:45:13]} {[%emt 00:00:27]} Kf7
{[%clk 00:42:47]} {[%emt 00:03:36]} 23. Rae1 {[%clk 00:44:34]} {[%emt
00:00:49]} Rae8 {[%clk 00:41:17]} {[%emt 00:01:39]} 24. Nf3 {[%clk 00:42:24]}
{[%emt 00:02:20]} Re4 {[%clk 00:33:25]} {[%emt 00:08:01]} 25. Rxe4 {[%clk
00:40:39]} {[%emt 00:01:56]} Bxe4 {[%clk 00:33:19]} {[%emt 00:00:15]} 26. Nh4
{[%clk 00:39:29]} {[%emt 00:01:21]} g5 {[%clk 00:31:42]} {[%emt 00:01:46]} 27.
fxg5 {[%clk 00:36:23]} {[%emt 00:03:16]} Rg8 {[%clk 00:30:39]} {[%emt
00:01:13]} 28. g6+ {[%clk 00:33:53]} {[%emt 00:02:40]} hxg6 {[%clk 00:30:46]}
{[%emt 00:00:03]} 29. Ng2 {[%clk 00:32:16]} {[%emt 00:01:47]} Rh8 {[%clk
00:29:35]} {[%emt 00:01:21]} 30. Re3 {[%clk 00:31:19]} {[%emt 00:01:07]} Bf5
{[%clk 00:22:14]} {[%emt 00:07:31]} 31. Nf4 {[%clk 00:29:28]} {[%emt 00:02:01]}
Rd8 {[%clk 00:19:53]} {[%emt 00:02:31]} 32. b4 {[%clk 00:28:19]} {[%emt
00:01:20]} g5 {[%clk 00:18:27]} {[%emt 00:01:35]} 33. Nd3 {[%clk 00:27:31]}
{[%emt 00:00:58]} a5 {[%clk 00:15:45]} {[%emt 00:02:52]} 34. a3 {[%clk
00:25:59]} {[%emt 00:01:42]} axb4 {[%clk 00:14:49]} {[%emt 00:01:06]} 35. cxb4
{[%clk 00:25:06]} {[%emt 00:01:03]} Bxd3 {[%clk 00:14:05]} {[%emt 00:00:54]} 36.
Rxd3 {[%clk 00:25:08]} {[%emt 00:00:08]} Ra8 {[%clk 00:13:44]} {[%emt
00:00:20]} 37. Rc3 {[%clk 00:24:40]} {[%emt 00:00:49]} Ke6 {[%clk 00:12:41]}
{[%emt 00:01:13]} 38. Kg2 {[%clk 00:24:10]} {[%emt 00:00:39]} Kd6 {[%clk
00:11:39]} {[%emt 00:01:12]} 39. Kg3 {[%clk 00:23:47]} {[%emt 00:00:32]} f5
{[%clk 00:10:32]} {[%emt 00:01:18]} 40. f4 {[%clk 00:21:35]} {[%emt 00:02:22]}
g4 {[%clk 00:09:57]} {[%emt 00:00:46]} 41. h3 {[%clk 00:21:27]} {[%emt
00:00:18]} gxh3 {[%clk 00:09:48]} {[%emt 00:00:19]} 42. Kxh3 {[%clk 00:21:27]}
{[%emt 00:00:10]} Rh8+ {[%clk 00:09:54]} {[%emt 00:00:04]} 43. Kg2 {[%clk
00:20:47]} {[%emt 00:00:49]} Re8 {[%clk 00:09:05]} {[%emt 00:01:01]} 44. Kf3
{[%clk 00:19:08]} {[%emt 00:01:49]} Re4 {[%clk 00:08:17]} {[%emt 00:00:56]} 45.
Rd3 {[%clk 00:18:18]} {[%emt 00:01:01]} Re8 {[%clk 00:07:52]} {[%emt 00:00:35]}
46. Rd1 {[%clk 00:17:58]} {[%emt 00:00:29]} Ra8 {[%clk 00:07:48]} {[%emt
00:00:14]} 47. Rd3 {[%clk 00:17:01]} {[%emt 00:01:08]} Rh8 {[%clk 00:07:39]}
{[%emt 00:00:18]} 48. Kg2 {[%clk 00:16:03]} {[%emt 00:01:09]} Rg8+ {[%clk
00:07:37]} {[%emt 00:00:12]} 49. Kf2 {[%clk 00:15:58]} {[%emt 00:00:16]} Rh8
{[%clk 00:07:34]} {[%emt 00:00:13]} 50. Rg3 {[%clk 00:15:11]} {[%emt 00:00:57]}
Rh2+ {[%clk 00:07:00]} {[%emt 00:00:44]} 51. Rg2 {[%clk 00:13:31]} {[%emt
00:01:50]} Rh3 {[%clk 00:06:51]} {[%emt 00:00:19]} 52. Rg6+ {[%clk 00:13:08]}
{[%emt 00:00:33]} Kd7 {[%clk 00:06:45]} {[%emt 00:00:16]} 53. Rg3 {[%clk
00:09:42]} {[%emt 00:03:37]} Rh2+ {[%clk 00:06:45]} {[%emt 00:00:09]} 54. Ke1
{[%clk 00:09:05]} {[%emt 00:00:48]} Rh4 {[%clk 00:06:23]} {[%emt 00:00:30]} 55.
Rf3 {[%clk 00:08:53]} {[%emt 00:00:24]} Rh1+ {[%clk 00:05:42]} {[%emt
00:00:27]} 56. Kd2 {[%clk 00:09:03]} Rh4 {[%clk 00:05:26]} {[%emt 00:00:42]} 57.
Kc2 {[%clk 00:08:48]} {[%emt 00:00:33]} Rh2+ {[%clk 00:05:24]} {[%emt
00:00:12]} 58. Kb3 {[%clk 00:07:54]} {[%emt 00:01:04]} Rd2 {[%clk 00:05:09]}
{[%emt 00:00:25]} 59. Kc3 {[%clk 00:07:37]} {[%emt 00:00:27]} Ra2 {[%clk
00:05:15]} {[%emt 00:00:03]} 60. Kb3 {[%clk 00:07:21]} {[%emt 00:00:27]} Rd2
{[%clk 00:05:23]} {[%emt 00:00:02]} 61. a4 {[%clk 00:06:33]} {[%emt 00:00:58]}
bxa4+ {[%clk 00:05:07]} {[%emt 00:00:27]} 62. Kxa4 {[%clk 00:06:22]} {[%emt
00:00:20]} Rxd4 {[%clk 00:05:04]} {[%emt 00:00:12]} 63. Kb5 {[%clk 00:05:47]}
{[%emt 00:00:46]} Rc4 {[%clk 00:04:41]} {[%emt 00:00:34]} 64. Rf1 {[%clk
00:04:35]} {[%emt 00:01:21]} Kd6 {[%clk 00:04:12]} {[%emt 00:00:38]} 65. Ka5
{[%clk 00:04:30]} {[%emt 00:00:16]} Rc2 {[%clk 00:03:37]} {[%emt 00:00:45]} 66.
b5 {[%clk 00:04:15]} {[%emt 00:00:25]} Kc5 {[%clk 00:03:20]} {[%emt 00:00:26]}
67. Ra1 {[%clk 00:03:04]} {[%emt 00:01:22]} d4 {[%clk 00:02:50]} {[%emt
00:00:40]} 68. b6 {[%clk 00:03:05]} {[%emt 00:00:09]} Rb2 {[%clk 00:02:55]}
{[%emt 00:00:03]} 69. Rc1 {[%clk 00:03:04]} {[%emt 00:00:14]} Kd6 {[%clk
00:02:47]} {[%emt 00:00:17]} 70. Ka6 {[%clk 00:03:00]} {[%emt 00:00:14]} Ra2+
{[%clk 00:02:43]} {[%emt 00:00:13]} 71. Kb7 {[%clk 00:03:04]} {[%emt 00:00:06]}
d3 {[%clk 00:02:42]} {[%emt 00:00:11]} 72. Rd1 {[%clk 00:02:52]} {[%emt
00:00:22]} d2 {[%clk 00:02:35]} {[%emt 00:00:17]} 73. Kc8 {[%clk 00:02:53]}
{[%emt 00:00:10]} Rc2+ {[%clk 00:02:30]} {[%emt 00:00:13]} 74. Kb8 {[%clk
00:02:58]} {[%emt 00:00:07]} Kc6 {[%clk 00:02:30]} {[%emt 00:00:09]} 75. b7
{[%clk 00:03:00]} {[%emt 00:00:09]} Rb2 {[%clk 00:02:34]} {[%emt 00:00:05]} 76.
Kc8 {[%clk 00:02:55]} {[%emt 00:00:16]} Rxb7 {[%clk 00:02:34]} {[%emt
00:00:10]} 77. Kd8 {[%clk 00:02:31]} {[%emt 00:00:34]} Rd7+ {[%clk 00:02:32]}
{[%emt 00:00:12]} 78. Ke8 {[%clk 00:02:36]} {[%emt 00:00:04]} Rd5 {[%clk
00:02:28]} {[%emt 00:00:11]} 79. Kf7 {[%clk 00:02:42]} {[%emt 00:00:07]} Kc5
{[%clk 00:02:33]} {[%emt 00:00:05]} 80. Kg6 {[%clk 00:02:49]} {[%emt 00:00:03]}
Kc4 {[%clk 00:02:37]} {[%emt 00:00:02]} 81. Kg5 {[%clk 00:02:54]} {[%emt
00:00:09]} Kc3 {[%clk 00:02:45]} {[%emt 00:00:02]} 82. Kh4 {[%clk 00:02:53]}
{[%emt 00:00:10]} Kc2 {[%clk 00:02:49]} {[%emt 00:00:04]} 83. Rf1 {[%clk
00:01:44]} {[%emt 00:01:21]} d1=Q {[%clk 00:02:49]} 84. Rxd1 {[%clk 00:01:54]}
Kd2 {[%clk 00:02:56]} 85. Kg5+ {[%clk 00:02:00]} Kxd1 {[%clk 00:03:02]} 86. Kf6
{[%clk 00:02:06]} {[%emt 00:00:07]} Ke2 {[%clk 00:03:05]} 87. Ke5 {[%emt
00:00:58]} Ra5+ 0-1

[Event "St Kilda East and Caulfield Chess Club T3 2025 Under 1600 Mondays"]
[Site "St Kilda East, Australia"]
[Date "2025.08.25"]
[Round "5.7"]
[White "Yu, Brandon"]
[Black "Fineberg, Leo"]
[Result "1-0"]
[TimeControl "60 minutes per player per game plus 10 secionds per move from move one"]
[WhiteElo "816"]
[BlackElo "631"]

1. d4 {[%clk 01:00:04]} {[%emt 00:00:06]} d5 {[%clk 01:00:04]} {[%emt
00:00:06]} 2. c4 {[%clk 01:00:07]} {[%emt 00:00:08]} c6 {[%clk 01:00:08]}
{[%emt 00:00:06]} 3. Nf3 {[%clk 01:00:05]} {[%emt 00:00:12]} Nf6 {[%clk
00:59:53]} {[%emt 00:00:25]} 4. Nc3 {[%clk 00:59:59]} {[%emt 00:00:16]} Bg4
{[%clk 00:59:47]} {[%emt 00:00:15]} 5. Bf4 {[%clk 00:59:53]} {[%emt 00:00:17]}
e6 {[%clk 00:59:26]} {[%emt 00:00:31]} 6. c5 {[%clk 00:59:37]} {[%emt
00:00:26]} b6 {[%clk 00:59:23]} {[%emt 00:00:13]} 7. b4 {[%clk 00:59:39]}
{[%emt 00:00:08]} a5 {[%clk 00:59:12]} {[%emt 00:00:21]} 8. a3 {[%clk
00:59:40]} {[%emt 00:00:09]} Nbd7 {[%clk 00:58:34]} {[%emt 00:00:48]} 9. h3
{[%clk 00:59:24]} {[%emt 00:00:26]} Bh5 {[%clk 00:58:30]} {[%emt 00:00:14]} 10.
Ne5 {[%clk 00:59:20]} {[%emt 00:00:14]} Ne4 {[%clk 00:56:48]} {[%emt 00:01:50]}
11. Nxe4 {[%clk 00:59:02]} {[%emt 00:00:30]} dxe4 {[%clk 00:56:06]} {[%emt
00:00:52]} 12. Nxc6 {[%clk 00:58:58]} {[%emt 00:00:14]} Qc8 {[%clk 00:55:41]}
{[%emt 00:00:35]} 13. Ne5 {[%clk 00:58:55]} {[%emt 00:00:13]} Nxe5 {[%clk
00:55:44]} {[%emt 00:00:07]} 14. Bxe5 {[%clk 00:58:56]} {[%emt 00:00:09]} axb4
{[%clk 00:55:24]} {[%emt 00:00:31]} 15. axb4 {[%clk 00:58:56]} {[%emt
00:00:10]} Rxa1 {[%clk 00:55:22]} {[%emt 00:00:11]} 16. Qxa1 {[%clk 00:58:59]}
{[%emt 00:00:08]} Qb7 {[%clk 00:54:02]} {[%emt 00:01:29]} 17. e3 {[%clk
00:58:50]} {[%emt 00:00:19]} Be7 {[%clk 00:53:59]} {[%emt 00:00:13]} 18. Qa4+
{[%clk 00:58:51]} {[%emt 00:00:10]} b5 {[%clk 00:53:41]} {[%emt 00:00:29]} 19.
Qxb5+ {[%clk 00:58:49]} {[%emt 00:00:12]} Qxb5 {[%clk 00:53:35]} {[%emt
00:00:15]} 20. Bxb5+ {[%clk 00:58:54]} {[%emt 00:00:06]} Kd8 {[%clk 00:53:29]}
{[%emt 00:00:16]} 21. O-O {[%clk 00:58:57]} {[%emt 00:00:07]} f6 {[%clk
00:53:21]} {[%emt 00:00:17]} 22. Bh2 {[%clk 00:58:38]} {[%emt 00:00:30]} Be8
{[%clk 00:52:56]} {[%emt 00:00:34]} 23. Bxe8 {[%clk 00:58:37]} {[%emt
00:00:12]} Kxe8 {[%clk 00:52:59]} {[%emt 00:00:07]} 24. Ra1 {[%clk 00:58:40]}
{[%emt 00:00:06]} Kf7 {[%clk 00:53:02]} {[%emt 00:00:08]} 25. Ra7 {[%clk
00:58:33]} {[%emt 00:00:17]} Rb8 {[%clk 00:52:48]} {[%emt 00:00:23]} 26. Bd6
{[%clk 00:58:34]} {[%emt 00:00:09]} Re8 {[%clk 00:52:35]} {[%emt 00:00:22]} 27.
Rxe7+ {[%clk 00:58:12]} {[%emt 00:00:31]} Rxe7 {[%clk 00:52:27]} {[%emt
00:00:19]} 28. Bxe7 {[%clk 00:58:20]} {[%emt 00:00:02]} Kxe7 {[%clk 00:52:27]}
{[%emt 00:00:11]} 29. b5 {[%clk 00:58:26]} {[%emt 00:00:04]} Kd7 {[%clk
00:52:32]} {[%emt 00:00:05]} 30. Kf1 {[%clk 00:58:22]} {[%emt 00:00:15]} Kc7
{[%clk 00:52:06]} {[%emt 00:00:36]} 31. Ke2 {[%clk 00:58:22]} {[%emt 00:00:10]}
h6 {[%clk 00:52:13]} {[%emt 00:00:03]} 32. f3 {[%clk 00:58:25]} {[%emt
00:00:06]} exf3+ {[%clk 00:52:04]} {[%emt 00:00:20]} 33. Kxf3 {[%clk 00:58:26]}
{[%emt 00:00:09]} g6 {[%clk 00:51:49]} {[%emt 00:00:25]} 34. g4 {[%clk
00:58:24]} {[%emt 00:00:12]} f5 {[%clk 00:51:34]} {[%emt 00:00:25]} 35. Kf4
{[%clk 00:58:26]} {[%emt 00:00:08]} Kd7 {[%clk 00:51:02]} {[%emt 00:00:42]} 36.
Ke5 {[%clk 00:58:07]} {[%emt 00:00:55]} 1-0

[Event "St Kilda East and Caulfield Chess Club T3 2025 Under 1600 Mondays"]
[Site "St Kilda East, Australia"]
[Date "2025.08.25"]
[Round "5.9"]
[White "Heideman, Don"]
[Black "Longe, Mathieu"]
[Result "0-1"]
[TimeControl "60 minutes per player per game plus 10 secionds per move from move one"]
[WhiteElo "478"]
[BlackElo "630"]

1. d4 {[%clk 00:59:57]} {[%emt 00:00:03]} d5 {[%clk 01:00:06]} {[%emt
00:00:15]} 2. Nf3 {[%clk 01:00:00]} {[%emt 00:00:07]} Bf5 {[%clk 00:59:32]}
{[%emt 00:00:44]} 3. Bf4 {[%clk 00:59:57]} {[%emt 00:00:12]} e6 {[%clk
00:59:34]} {[%emt 00:00:08]} 4. e3 {[%clk 00:59:56]} {[%emt 00:00:11]} c5
{[%clk 00:59:35]} {[%emt 00:00:10]} 5. Be2 {[%clk 00:59:20]} {[%emt 00:00:45]}
Nc6 {[%clk 00:59:33]} {[%emt 00:00:12]} 6. O-O {[%clk 00:58:51]} {[%emt
00:00:40]} Qb6 {[%clk 00:58:57]} {[%emt 00:00:46]} 7. b3 {[%clk 00:58:07]}
{[%emt 00:00:54]} Nf6 {[%clk 00:58:10]} {[%emt 00:00:56]} 8. c4 {[%clk
00:56:49]} {[%emt 00:01:28]} Be7 {[%clk 00:57:10]} {[%emt 00:01:10]} 9. Nc3
{[%clk 00:54:54]} {[%emt 00:02:05]} O-O {[%clk 00:56:15]} {[%emt 00:01:05]} 10.
Bd3 {[%clk 00:51:32]} {[%emt 00:03:32]} Bxd3 {[%clk 00:55:18]} {[%emt
00:01:06]} 11. Qxd3 {[%clk 00:51:22]} {[%emt 00:00:20]} h6 {[%clk 00:53:36]}
{[%emt 00:01:52]} 12. Rab1 {[%clk 00:49:43]} {[%emt 00:01:49]} Nh5 {[%clk
00:52:13]} {[%emt 00:01:33]} 13. Ne2 {[%clk 00:47:45]} {[%emt 00:02:07]} Bf6
{[%clk 00:50:09]} {[%emt 00:02:15]} 14. Ne5 {[%clk 00:45:02]} {[%emt 00:02:54]}
Nxf4 {[%clk 00:47:53]} {[%emt 00:02:25]} 15. Nxf4 {[%clk 00:41:18]} {[%emt
00:03:54]} Nxe5 {[%clk 00:47:34]} {[%emt 00:00:29]} 16. dxe5 {[%clk 00:40:52]}
{[%emt 00:00:36]} Bxe5 {[%clk 00:47:36]} {[%emt 00:00:07]} 17. cxd5 {[%clk
00:39:43]} {[%emt 00:01:20]} Bxf4 {[%clk 00:47:40]} {[%emt 00:00:06]} 18. exf4
{[%clk 00:39:32]} {[%emt 00:00:21]} Rfd8 {[%clk 00:47:03]} {[%emt 00:00:48]} 19.
Rfe1 {[%clk 00:36:43]} {[%emt 00:02:59]} Rxd5 {[%clk 00:46:38]} {[%emt
00:00:33]} 20. Qf3 {[%clk 00:34:56]} {[%emt 00:01:58]} Rad8 {[%clk 00:45:50]}
{[%emt 00:00:58]} 21. h3 {[%clk 00:34:22]} {[%emt 00:00:43]} Qa5 {[%clk
00:43:08]} {[%emt 00:02:51]} 22. a4 {[%clk 00:32:08]} {[%emt 00:02:26]} a6
{[%clk 00:39:29]} {[%emt 00:03:50]} 23. Kh2 {[%clk 00:30:16]} {[%emt 00:02:01]}
b5 {[%clk 00:39:32]} {[%emt 00:00:08]} 24. Ra1 {[%clk 00:29:13]} {[%emt
00:01:13]} Qb6 {[%clk 00:38:59]} {[%emt 00:00:43]} 25. Rab1 {[%clk 00:28:26]}
{[%emt 00:00:57]} bxa4 {[%clk 00:37:28]} {[%emt 00:01:40]} 26. bxa4 {[%clk
00:28:13]} {[%emt 00:00:22]} Qc6 {[%clk 00:37:14]} {[%emt 00:00:25]} 27. a5
{[%clk 00:26:38]} {[%emt 00:01:45]} c4 {[%clk 00:37:10]} {[%emt 00:00:13]} 28.
Rb6 {[%clk 00:24:36]} {[%emt 00:02:12]} Qc5 {[%clk 00:36:05]} {[%emt 00:01:16]}
29. Rxa6 {[%clk 00:23:59]} {[%emt 00:00:46]} c3 {[%clk 00:35:37]} {[%emt
00:00:39]} 30. Rc1 {[%clk 00:23:18]} {[%emt 00:00:51]} c2 {[%clk 00:35:16]}
{[%emt 00:00:31]} 31. Qe2 {[%clk 00:22:03]} {[%emt 00:01:24]} Rd2 {[%clk
00:34:14]} {[%emt 00:01:12]} 32. Qe3 {[%clk 00:19:06]} {[%emt 00:03:07]} Qxe3
{[%clk 00:32:54]} {[%emt 00:01:29]} 33. fxe3 {[%clk 00:19:13]} {[%emt
00:00:04]} Rc8 {[%clk 00:32:44]} {[%emt 00:00:21]} 34. Rb6 {[%clk 00:18:36]}
{[%emt 00:00:46]} Rd1 {[%clk 00:32:34]} {[%emt 00:00:21]} 35. Rxc2 {[%clk
00:17:50]} {[%emt 00:00:53]} Rxc2 {[%clk 00:32:34]} {[%emt 00:00:11]} 36. a6
{[%clk 00:17:37]} {[%emt 00:00:25]} Ra1 {[%clk 00:32:34]} {[%emt 00:00:09]} 37.
Kg3 {[%clk 00:16:45]} {[%emt 00:01:02]} Rca2 {[%clk 00:32:37]} {[%emt
00:00:08]} 38. e4 {[%clk 00:15:56]} {[%emt 00:01:00]} Rxa6 {[%clk 00:32:23]}
{[%emt 00:00:23]} 39. Rxa6 {[%clk 00:15:33]} {[%emt 00:00:04]} Rxa6 {[%clk
00:32:23]} 0-1

[Event "St Kilda East and Caulfield Chess Club T3 2025 Under 1600 Mondays"]
[Site "St Kilda East, Australia"]
[Date "2025.08.25"]
[Round "5.6"]
[White "Nguyen, Tai"]
[Black "Yong, Leonard"]
[Result "1-0"]
[TimeControl "60 minutes per player per game plus 10 secionds per move from move one"]
[WhiteElo "749"]
[BlackElo "449"]

1. d4 {[%clk 01:00:06]} {[%emt 00:00:03]} d5 {[%clk 01:00:07]} {[%emt
00:00:04]} 2. c4 {[%clk 01:00:08]} {[%emt 00:00:08]} dxc4 {[%clk 01:00:03]}
{[%emt 00:00:14]} 3. e4 {[%clk 01:00:08]} {[%emt 00:00:10]} e6 {[%clk
00:59:48]} {[%emt 00:00:25]} 4. Bxc4 {[%clk 00:59:57]} {[%emt 00:00:18]} Nc6
{[%clk 00:59:19]} {[%emt 00:00:41]} 5. Nf3 {[%clk 00:59:53]} {[%emt 00:00:14]}
Nh6 {[%clk 00:58:52]} {[%emt 00:00:37]} 6. O-O {[%clk 00:59:08]} {[%emt
00:00:56]} Bd6 {[%clk 00:57:43]} {[%emt 00:01:20]} 7. Nc3 {[%clk 00:58:49]}
{[%emt 00:00:28]} O-O {[%clk 00:57:22]} {[%emt 00:00:31]} 8. Bxh6 {[%clk
00:58:49]} {[%emt 00:00:10]} gxh6 {[%clk 00:57:18]} {[%emt 00:00:14]} 9. Qd2
{[%clk 00:58:15]} {[%emt 00:00:45]} Kg7 {[%clk 00:55:34]} {[%emt 00:01:53]} 10.
Ne2 {[%clk 00:57:08]} {[%emt 00:01:17]} f5 {[%clk 00:54:29]} {[%emt 00:01:15]}
11. e5 {[%clk 00:55:59]} {[%emt 00:01:19]} Bb4 {[%clk 00:54:15]} {[%emt
00:00:25]} 12. Qf4 {[%clk 00:55:14]} {[%emt 00:00:55]} h5 {[%clk 00:52:39]}
{[%emt 00:01:45]} 13. Ng3 {[%clk 00:54:16]} {[%emt 00:01:08]} Qe8 {[%clk
00:50:55]} {[%emt 00:01:55]} 14. Qg5+ {[%clk 00:52:58]} {[%emt 00:01:25]} Qg6
{[%clk 00:50:18]} {[%emt 00:00:51]} 15. Nxh5+ {[%clk 00:51:44]} {[%emt
00:01:21]} Kh8 {[%clk 00:49:32]} {[%emt 00:00:40]} 16. Qxg6 {[%clk 00:49:34]}
{[%emt 00:02:37]} hxg6 {[%clk 00:49:26]} {[%emt 00:00:17]} 17. Nf6 {[%clk
00:49:39]} {[%emt 00:00:06]} Be7 {[%clk 00:49:16]} {[%emt 00:00:20]} 18. Nh4
{[%clk 00:48:34]} {[%emt 00:01:14]} Bxf6 {[%clk 00:49:00]} {[%emt 00:00:25]} 19.
Nxg6+ {[%clk 00:48:35]} {[%emt 00:00:09]} Kg8 {[%clk 00:48:38]} {[%emt
00:00:32]} 20. Nxf8 {[%clk 00:48:40]} {[%emt 00:00:05]} Kxf8 {[%clk 00:48:31]}
{[%emt 00:00:17]} 21. exf6 {[%clk 00:48:40]} {[%emt 00:00:10]} Nxd4 {[%clk
00:48:33]} {[%emt 00:00:09]} 22. Rad1 {[%clk 00:47:20]} {[%emt 00:01:29]} Nc6
{[%clk 00:47:44]} {[%emt 00:01:00]} 23. Rfe1 {[%clk 00:46:23]} {[%emt
00:01:05]} Kf7 {[%clk 00:47:22]} {[%emt 00:00:35]} 24. Rd3 {[%clk 00:44:56]}
{[%emt 00:01:33]} Kxf6 {[%clk 00:46:54]} {[%emt 00:00:41]} 25. Rh3 {[%clk
00:43:02]} {[%emt 00:02:04]} Kg6 {[%clk 00:45:18]} {[%emt 00:01:45]} 26. Bxe6
{[%clk 00:42:43]} {[%emt 00:00:30]} Bxe6 {[%clk 00:45:18]} {[%emt 00:00:10]} 27.
Rxe6+ {[%clk 00:42:38]} {[%emt 00:00:15]} Kf7 {[%clk 00:45:24]} {[%emt
00:00:05]} 28. Rhh6 {[%clk 00:42:23]} {[%emt 00:00:24]} Rd8 {[%clk 00:44:48]}
{[%emt 00:00:47]} 29. h3 {[%clk 00:42:23]} {[%emt 00:00:09]} f4 {[%clk
00:43:39]} {[%emt 00:01:19]} 30. Rhf6+ {[%clk 00:42:18]} {[%emt 00:00:15]} Kg7
{[%clk 00:43:26]} {[%emt 00:00:24]} 31. Rxf4 {[%emt 00:02:21]} Rd1+ {[%clk
00:41:52]} {[%emt 00:00:01]} 32. Kh2 {[%clk 00:41:55]} {[%emt 00:00:04]} Rd8
{[%clk 00:41:48]} {[%emt 00:00:13]} 33. Re3 {[%clk 00:41:48]} {[%emt 00:00:18]}
Kg6 {[%clk 00:41:07]} {[%emt 00:00:51]} 34. Rg3+ {[%clk 00:41:33]} {[%emt
00:00:25]} Kh5 {[%clk 00:40:52]} {[%emt 00:00:25]} 35. Rf5+ {[%clk 00:41:14]}
{[%emt 00:00:29]} Kh4 {[%emt 00:00:30]} 36. Rg4# {[%clk 00:41:14]} {[%emt
00:00:06]} 1-0